Department Family,Entity,Date,Expenses Type,Expense Area,Supplier,Transaction Number, Total 
Department of Health,The Christie NHS Foundation Trust,06/12/2018,Fees Month 3 & Route to Market,Programme Management Office,AKESO AND COMPANY LIMITED,600220,"21,883.65"
Department of Health,The Christie NHS Foundation Trust,20/12/2018,Print Management,Corporate,APOGEE CORPORATION LTD,602344,"25,688.22"
Department of Health,The Christie NHS Foundation Trust,03/12/2018,Drugs,Drugs,BAXTER HEALTHCARE LTD,601228,"336,207.60"
Department of Health,The Christie NHS Foundation Trust,06/12/2018,Drugs,Drugs,BAXTER HEALTHCARE LTD,599497,"567,985.37"
Department of Health,The Christie NHS Foundation Trust,13/12/2018,Drugs,Drugs,BAXTER HEALTHCARE LTD,600255,"653,658.38"
Department of Health,The Christie NHS Foundation Trust,20/12/2018,Drugs,Drugs,BAXTER HEALTHCARE LTD,601454,"601,488.82"
Department of Health,The Christie NHS Foundation Trust,20/12/2018,Drugs,Drugs,BAXTER HEALTHCARE LTD,602003,"-57,696.00"
Department of Health,The Christie NHS Foundation Trust,20/12/2018,Drugs,Drugs,BAXTER HEALTHCARE LTD,600756,"599,063.00"
Department of Health,The Christie NHS Foundation Trust,13/12/2018,Drugs,Drugs,BOLTON NHS FOUNDATION TRUST,591956,"46,715.50"
Department of Health,The Christie NHS Foundation Trust,13/12/2018,Drugs,Drugs,BOLTON NHS FOUNDATION TRUST,594552,"36,916.69"
Department of Health,The Christie NHS Foundation Trust,13/12/2018,Drugs,Drugs,BOLTON NHS FOUNDATION TRUST,596846,"37,703.31"
Department of Health,The Christie NHS Foundation Trust,13/12/2018,Drugs,Drugs,BOLTON NHS FOUNDATION TRUST,588200,"33,648.68"
Department of Health,The Christie NHS Foundation Trust,06/12/2018,Cleaning May-Aug 18,Capital,CHAMPION CLEANING SERVICES LTD T/A ASSCO,599357,"53,265.70"
Department of Health,The Christie NHS Foundation Trust,20/12/2018,Medical Equipment Maintenance Contract,Clinical Support & Specialist Surgery,CPP FACILITIES LLP,599863,"209,094.30"
Department of Health,The Christie NHS Foundation Trust,06/12/2018,Medical Equipment,Capital,D P MEDICAL SYSTEMS LTD,601024,"34,827.60"
Department of Health,The Christie NHS Foundation Trust,20/12/2018,Medical Equipment,Clinical Support & Specialist Surgery,DRAEGER MEDICAL UK LIMITED,601672,"42,510.00"
Department of Health,The Christie NHS Foundation Trust,20/12/2018,Energy Contract Nov 18,Network Services,EDF ENERGY,601589,"38,667.54"
Department of Health,The Christie NHS Foundation Trust,20/12/2018,Energy Contract Nov 18,Network Services,EDF ENERGY,601590,"45,509.67"
Department of Health,The Christie NHS Foundation Trust,06/12/2018,Library System,School of Oncology,ELSEVIER SCIENCE B.V.,600826,"29,194.70"
Department of Health,The Christie NHS Foundation Trust,20/12/2018,Childcare Voucher- Dec 18,Human Resources,FIDELITI LIMITED,602346,"30,906.87"
Department of Health,The Christie NHS Foundation Trust,06/12/2018,Medical Equipment,Clinical Support & Specialist Surgery,GETINGE UK LIMITED,600011,"22,633.80"
Department of Health,The Christie NHS Foundation Trust,20/12/2018,Computer Equipment,FInance & Business Development,HP INC.UK LIMITED,600833,"68,948.64"
Department of Health,The Christie NHS Foundation Trust,20/12/2018,Paterson Development,Capital,INTERSERVE CONSTRUCTION LTD,602290,"877,563.20"
Department of Health,The Christie NHS Foundation Trust,20/12/2018,Paterson Development,Capital,INTERSERVE CONSTRUCTION LTD,602443,"476,366.42"
Department of Health,The Christie NHS Foundation Trust,13/12/2018,Drugs,Drugs,LLOYDSPHARMACY CLINICAL HOMECARE,601942,"46,541.00"
Department of Health,The Christie NHS Foundation Trust,07/12/2018,Rates 18/19,Estates & Facilities,M/CR CITY COUNCIL (RATES) DD,603072,"75,318.00"
Department of Health,The Christie NHS Foundation Trust,13/12/2018,Blood Products,Network Services,NHS BLOOD AND TRANSPLANT,599919,"34,467.61"
Department of Health,The Christie NHS Foundation Trust,17/12/2018,Blood Products,Network Services,NHS BLOOD AND TRANSPLANT,603003,"182,293.80"
Department of Health,The Christie NHS Foundation Trust,17/12/2018,NHS Litigation (NHSLA),FInance & Business Development,NHS LITIGATION AUTHORITY,602828,"93,092.10"
Department of Health,The Christie NHS Foundation Trust,06/12/2018,Stock for all Wards & Departments,All Wards and Departments,NHS SUPPLY CHAIN,600429,"1,463,192.94"
Department of Health,The Christie NHS Foundation Trust,06/12/2018,Stock for all Wards & Departments,All Wards and Departments,NHS SUPPLY CHAIN,599188,"38,992.69"
Department of Health,The Christie NHS Foundation Trust,13/12/2018,Stock for all Wards & Departments,All Wards and Departments,NHS SUPPLY CHAIN,599809,"54,557.59"
Department of Health,The Christie NHS Foundation Trust,20/12/2018,Stock for all Wards & Departments,All Wards and Departments,NHS SUPPLY CHAIN,600419,"49,334.19"
Department of Health,The Christie NHS Foundation Trust,20/12/2018,Stock for all Wards & Departments,All Wards and Departments,NHS SUPPLY CHAIN,601062,"47,692.55"
Department of Health,The Christie NHS Foundation Trust,13/12/2018,Computer Equipment,Clinical Support & Specialist Surgery,OLYMPUS KEYMED,601565,"29,145.97"
Department of Health,The Christie NHS Foundation Trust,13/12/2018,Medical Equipment,Capital,PURE AUDIO VISUAL LTD,597310,"27,433.51"
Department of Health,The Christie NHS Foundation Trust,20/12/2018,Audit Services,FInance & Business Development,ROYAL LIVERPOOL & BROADGREEN NHS TRUST,602016,"25,662.00"
Department of Health,The Christie NHS Foundation Trust,13/12/2018,Macmillan Project Sep 18,Manchester Cancer,SALFORD ROYAL HOSP NHS FT,601668,"123,206.23"
Department of Health,The Christie NHS Foundation Trust,20/12/2018,Medical Equipment,Capital,SIEMENS HEALTHCARE LIMITED,601187,"182,219.22"
Department of Health,The Christie NHS Foundation Trust,06/12/2018,Drugs,Drugs,THE CHRISTIE CLINIC (HCA),596907,"66,110.00"
Department of Health,The Christie NHS Foundation Trust,06/12/2018,Drugs,Drugs,THE CHRISTIE CLINIC (HCA),599479,"53,746.00"
Department of Health,The Christie NHS Foundation Trust,06/12/2018,Drugs,Drugs,THE CHRISTIE CLINIC (HCA),599585,"-45,590.00"
Department of Health,The Christie NHS Foundation Trust,20/12/2018,Patient Testing Service ,Clinical Support & Specialist Surgery,THE CHRISTIE PATHOLOGY PARTNERSHIP LLP,599864,"439,979.32"
Department of Health,The Christie NHS Foundation Trust,20/12/2018,Patient Testing Service ,Clinical Support & Specialist Surgery,THE CHRISTIE PATHOLOGY PARTNERSHIP LLP,600492,"367,545.91"
Department of Health,The Christie NHS Foundation Trust,20/12/2018,Consultancy,Programme Management Office,UNIQUE HEALTH SOLUTIONS,600619,"26,303.40"
Department of Health,The Christie NHS Foundation Trust,13/12/2018,Research Project,Research & Development,UNIVERSITY OF MANCHESTER,601432,"32,087.14"
Department of Health,The Christie NHS Foundation Trust,20/12/2018,Research Project,Research & Development,UNIVERSITY OF MANCHESTER,600848,"87,969.50"
Department of Health,The Christie NHS Foundation Trust,13/12/2018,Proton Beam Development (PBT),Capital,VARIAN MEDICAL SYSTEMS UK LTD,594441,"3,387,046.80"
Department of Health,The Christie NHS Foundation Trust,13/12/2018,Proton Beam Development (PBT),Capital,VARIAN MEDICAL SYSTEMS UK LTD,599274,"1,693,522.80"
Department of Health,The Christie NHS Foundation Trust,20/12/2018,Proton Beam Development (PBT),Capital,VARIAN MEDICAL SYSTEMS UK LTD,601635,"41,268.00"
Department of Health,The Christie NHS Foundation Trust,13/12/2018,Energy Contract- Oct 18,Estates & Facilities,VEOLIA ENERGY &UTILITY SERVICES UK PLC,600313,"281,535.85"
Department of Health,The Christie NHS Foundation Trust,06/12/2018,Christie @ Wigan Nov 18,Network Services,WRIGHTINGTON WIGAN AND LEIGH NHS FT,600354,"231,448.00"
Department of Health,The Christie NHS Foundation Trust,13/12/2018,Macmillan Jul-Sep 18,Network Services,WRIGHTINGTON WIGAN AND LEIGH NHS FT,597181,"74,812.00"
Department of Health,The Christie NHS Foundation Trust,20/12/2018,Christie @ Wigan Dec 18,Network Services,WRIGHTINGTON WIGAN AND LEIGH NHS FT,601150,"231,448.00"
